bitfinex/quotes_BTCUSD_20241120
["timestamp","ask_amount","ask_price","bid_price","bid_amount"]
[1732066863932,0.11168927,91946.0,91945.0,0.1017064]
[1732066864139,0.11168927,91946.0,91945.0,0.24800876]
[1732066864369,0.11168927,91946.0,91945.0,0.1017064]
[1732066864591,0.11168927,91946.0,91945.0,0.0017064]
[1732066864592,0.10906255,91946.0,91945.0,0.0017064]
[1732066864813,0.19166255,91946.0,91945.0,0.0017064]
[1732066865242,0.19428173,91946.0,91945.0,0.0017064]
[1732066865450,0.19428173,91946.0,91945.0,0.09924698]
[1732066865671,0.21728173,91946.0,91945.0,0.09924698]
[1732066865887,0.21728173,91946.0,91945.0,0.09924133]
[1732066866105,0.21728173,91946.0,91945.0,0.0017064]
[1732066868050,0.11168173,91946.0,91945.0,0.0017064]
[1732066885085,0.11168173,91946.0,91937.0,0.19745538]
[1732066885531,0.10906255,91946.0,91937.0,0.19745538]
[1732066885972,0.00243838,91945.0,91937.0,0.19745538]
[1732066886182,0.10906255,91944.0,91937.0,0.09745538]
[1732066886399,0.10906255,91944.0,91937.0,0.13293262]
[1732066886642,0.00243662,91943.0,91938.0,0.1]
[1732066886839,0.10906255,91942.0,91938.0,0.1]
[1732066887186,0.10906255,91942.0,91939.0,0.09745538]
[1732066887878,0.10906255,91942.0,91938.0,0.1]
[1732066887879,0.10906255,91942.0,91938.0,0.19745538]
[1732066888090,0.10906255,91942.0,91938.0,0.1]
[1732066888490,0.10906255,91942.0,91937.0,0.13293262]
[1732066888491,0.10906255,91942.0,91937.0,0.13547724]
[1732066889224,0.10906255,91942.0,91937.0,0.03547724]
[1732066889417,0.10906255,91942.0,91937.0,0.09745538]
[1732066889617,0.10906255,91942.0,91936.0,0.09745538]
[1732066889845,0.0832,91941.0,91936.0,0.09745538]
[1732066890044,0.10906255,91940.0,91936.0,0.09745538]
[1732066890244,0.11149654,91940.0,91936.0,0.09745538]
[1732066891314,0.11149654,91940.0,91935.0,0.09745538]
[1732066891516,0.11149654,91940.0,91939.0,0.09745538]
[1732066891741,0.00243399,91940.0,91939.0,0.09745538]
[1732066891944,0.00243399,91940.0,91937.0,0.1]
[1732066891945,0.0008542,91949.0,91938.0,0.00217515]
[1732066892151,0.10906255,91948.0,91938.0,0.09963294]
[1732066892779,0.10906255,91948.0,91939.0,0.09745779]
[1732066893019,0.10882902,91948.0,91940.0,0.09745779]
[1732066893315,0.10882902,91948.0,91941.0,0.09745779]
[1732066893316,0.00243547,91947.0,91941.0,0.09745779]
[1732066893542,0.10906255,91946.0,91941.0,0.09745779]
[1732066893951,0.00243421,91945.0,91939.0,0.19745779]
[1732066894154,0.00243421,91945.0,91939.0,0.09745779]
[1732066894155,0.10906255,91944.0,91939.0,0.09745779]
[1732066894363,0.10906255,91944.0,91940.0,0.09745779]
[1732066894512,0.00243403,91943.0,91940.0,0.09747892]
[1732066894715,0.10906255,91943.0,91940.0,0.09747892]
[1732066894934,0.10906255,91943.0,91939.0,0.1]
[1732066894935,0.00243328,91942.0,91939.0,0.19747892]
[1732066895140,0.00243328,91942.0,91940.0,0.09747892]
[1732066895709,0.00243328,91942.0,91941.0,0.09747892]
[1732066895903,0.10906255,91943.0,91941.0,0.09747892]
[1732066896100,0.10906255,91943.0,91942.0,0.09747892]
[1732066896593,0.10906255,91943.0,91941.0,0.1]
[1732066896773,0.10906255,91943.0,91940.0,0.14621839]
[1732066896774,0.10906255,91943.0,91942.0,0.09749881]
[1732066897685,0.10906255,91943.0,91941.0,0.1]
[1732066897686,0.10906255,91943.0,91941.0,0.19749881]
[1732066897871,0.10906255,91943.0,91942.0,0.09749881]
[1732066898082,0.10906255,91943.0,91941.0,0.1]
[1732066898281,0.10906255,91943.0,91942.0,0.0975156]
[1732066898948,0.155,91942.0,91941.0,0.0975156]
[1732066899167,0.26406255,91942.0,91937.0,0.0975156]
[1732066899387,0.023,91940.0,91935.0,0.09753247]
[1732066899590,0.10906255,91939.0,91936.0,0.09753247]
[1732066899772,0.11149703,91939.0,91936.0,0.09924087]
[1732066900825,0.11149703,91939.0,91936.0,0.0017084]
[1732066901046,0.11149703,91939.0,91936.0,0.09924087]
[1732066901265,0.10906255,91939.0,91936.0,0.09924087]
[1732066901677,0.0024336,91938.0,91937.0,0.09753247]
[1732066901914,0.11149615,91938.0,91937.0,0.09753247]
[1732066902120,0.11149615,91938.0,91936.0,0.0017084]
[1732066902121,0.11149615,91938.0,91936.0,0.14800711]
[1732066902328,0.10906255,91937.0,91936.0,0.24800711]
[1732066902534,0.10906255,91937.0,91936.0,0.1017084]
[1732066902749,0.11149528,91937.0,91936.0,0.1017084]
[1732066903609,0.10906255,91937.0,91936.0,0.1017084]
[1732066903811,0.11149528,91937.0,91936.0,0.1017084]
[1732066904013,0.11149528,91937.0,91936.0,0.0017084]
[1732066904221,0.10906255,91937.0,91936.0,0.1017084]
[1732066904420,0.10906255,91937.0,91936.0,0.24805887]
[1732066904854,0.10906255,91937.0,91936.0,0.1017084]
[1732066905291,0.11149528,91937.0,91936.0,0.0017084]
[1732066922136,0.10906255,91937.0,91936.0,0.0017084]
[1732066922354,0.11137567,91937.0,91936.0,0.09925527]
[1732066922580,0.11137567,91937.0,91936.0,0.0017084]
[1732066922797,0.10906255,91937.0,91936.0,0.09925527]
[1732066923003,0.11138154,91937.0,91936.0,0.09925527]
[1732066923232,0.11138154,91937.0,91936.0,0.0017084]
[1732066925264,0.00231899,91937.0,91936.0,0.0017084]
[1732066925497,0.0008542,91948.0,91936.0,0.2502039]
[1732066925705,0.10906255,91947.0,91943.0,0.09752388]
[1732066925943,0.10906255,91947.0,91941.0,0.1]
[1732066925944,0.08542689,91946.0,91941.0,0.1]
[1732066926139,0.10906255,91945.0,91941.0,0.1]
[1732066926348,0.00232513,91944.0,91941.0,0.1]
[1732066926566,0.10906255,91943.0,91941.0,0.1]
[1732066926782,0.10906255,91943.0,91936.0,0.0017084]
[1732066926995,0.00232338,91942.0,91936.0,0.0017084]
[1732066927233,0.10906255,91941.0,91936.0,0.0017084]
[1732066927434,0.10906255,91941.0,91936.0,0.09924233]
[1732066927657,0.00232162,91940.0,91936.0,0.09924233]
[1732066927864,0.10906255,91939.0,91936.0,0.09924233]
[1732066929197,0.10906255,91939.0,91936.0,0.0017084]
[1732066929405,0.00231987,91938.0,91936.0,0.0017084]
[1732066929621,0.0464,91942.0,91936.0,0.0017084]
[1732066929622,0.10906255,91937.0,91936.0,0.0017084]
[1732066930273,0.10906255,91937.0,91936.0,0.09924233]
[1732066930487,0.10906255,91937.0,91936.0,0.0017084]
[1732066930703,0.11138154,91937.0,91936.0,0.0017084]
[1732066932496,0.11138154,91937.0,91929.0,0.09754509]
[1732066933170,0.11138154,91937.0,91921.0,0.19506787]
[1732066933369,0.11138154,91937.0,91919.0,0.19506787]
[1732066933775,0.10906255,91937.0,91919.0,0.19506787]
[1732066934156,0.00231811,91936.0,91919.0,0.19506787]
[1732066934378,0.10906255,91935.0,91920.0,0.19724331]
[1732066934582,0.10906255,91935.0,91921.0,0.1]
[1732066934783,0.10906255,91935.0,91922.0,0.00217544]
[1732066935183,0.10906255,91935.0,91923.0,0.19506787]
[1732066935391,0.10906255,91935.0,91924.0,0.10217544]
[1732066936623,0.10906255,91935.0,91924.0,0.00217544]
[1732066936830,0.10906255,91935.0,91925.0,0.00217544]
[1732066937038,0.10906255,91935.0,91921.0,0.00217544]
[1732066939250,0.0754,91934.0,91922.0,0.1]
[1732066939477,0.10906255,91933.0,91922.0,0.1]
[1732066939856,0.00231262,91932.0,91922.0,0.1]
[1732066940144,0.10906255,91931.0,91922.0,0.1]
[1732066940356,0.10906255,91931.0,91923.0,0.00217549]
[1732066940476,0.10906255,91931.0,91924.0,0.1]
[1732066940477,0.00231086,91930.0,91924.0,0.1]
[1732066940682,0.00231086,91930.0,91923.0,0.00217549]
[1732066940683,0.10906255,91930.0,91923.0,0.10217549]
[1732066941278,0.00230999,91929.0,91923.0,0.10217549]
[1732066941499,0.00230999,91929.0,91926.0,0.1]
[1732066942553,0.00230999,91929.0,91928.0,0.1]
[1732066942809,0.10906255,91930.0,91928.0,0.1]
[1732066943000,0.10906255,91929.0,91928.0,0.1]
[1732066943206,0.15546255,91929.0,91928.0,0.1]
[1732066943406,0.15776963,91929.0,91928.0,0.1]
[1732066943672,0.23316963,91929.0,91921.0,0.09758029]
[1732066943862,0.13206255,91928.0,91921.0,0.09758029]
[1732066944086,0.13206255,91928.0,91917.0,0.09758029]
[1732066944239,0.13206255,91928.0,91916.0,0.1]
[1732066944240,0.023,91926.0,91920.0,0.03505835]
[1732066944454,0.023,91924.0,91916.0,0.09758029]
[1732066944644,0.10906255,91923.0,91916.0,0.09758029]
[1732066944801,0.11135902,91923.0,91916.0,0.09758029]
[1732066945261,0.11135902,91923.0,91916.0,0.03514041]
[1732066945496,0.11135902,91923.0,91917.0,0.1]
[1732066945631,0.11135902,91923.0,91918.0,0.1]
[1732066946159,0.00229559,91922.0,91918.0,0.1]
[1732066946357,0.00229559,91922.0,91920.0,0.0017084]
[1732066946358,0.10906255,91921.0,91920.0,0.0017084]
[1732066946635,0.11135726,91921.0,91920.0,0.0017084]
[1732066951744,0.19085726,91921.0,91920.0,0.0017084]
[1732066952813,0.26215726,91921.0,91920.0,0.0017084]
[1732066956168,0.27215726,91921.0,91920.0,0.0017084]
[1732066960091,0.26215726,91921.0,91920.0,0.0017084]
[1732066962233,0.27215726,91921.0,91920.0,0.0017084]
[1732066963799,0.26215726,91921.0,91920.0,0.0017084]
[1732066969736,0.27215726,91921.0,91920.0,0.0017084]
[1732066972767,0.27415726,91921.0,91920.0,0.0017084]
[1732066972974,0.29238974,91921.0,91920.0,0.0017084]
[1732066973185,0.30238974,91921.0,91920.0,0.0017084]
[1732066973720,0.30438974,91921.0,91920.0,0.0017084]
[1732066974679,0.30438724,91921.0,91920.0,0.0017084]
[1732066975457,0.33925209,91921.0,91920.0,0.0017084]
[1732066977039,0.33925209,91921.0,91911.0,0.0004]
[1732066977040,0.1772,91912.0,91911.0,0.0004]
[1732066977260,0.28626255,91912.0,91911.0,0.0004]
[1732066977460,0.28835777,91912.0,91911.0,0.0004]
[1732066977633,0.30857498,91912.0,91911.0,0.0004]
[1732066977840,0.28835777,91912.0,91911.0,0.0004]
[1732066982096,0.28835777,91912.0,91911.0,0.0021086]
[1732066985297,0.26335777,91912.0,91911.0,0.0021086]
[1732066986240,0.25335777,91912.0,91911.0,0.0021086]
[1732066986457,0.28635777,91912.0,91911.0,0.0021086]
[1732066986662,0.27635777,91912.0,91911.0,0.0021086]
[1732066987086,0.22645777,91912.0,91911.0,0.0021086]
[1732066987306,0.11115777,91912.0,91911.0,0.0021086]
[1732066987522,0.11115777,91912.0,91911.0,0.03678279]
[1732066987729,0.11115777,91912.0,91911.0,0.0021086]
[1732066988204,0.11115777,91912.0,91911.0,0.03813107]
[1732066988424,0.11115777,91912.0,91911.0,0.0021086]
[1732066988633,0.10906255,91912.0,91911.0,0.0021086]
[1732066989033,0.1111366,91912.0,91911.0,0.0021086]
[1732066989497,0.1341366,91912.0,91911.0,0.0021086]
[1732066990755,0.1111366,91912.0,91911.0,0.0021086]
[1732066992082,0.1341366,91912.0,91911.0,0.0021086]
[1732066999379,0.2555366,91912.0,91911.0,0.0021086]
[1732066999586,0.2775366,91912.0,91911.0,0.0021086]
[1732067001914,0.2725366,91912.0,91911.0,0.0021086]
[1732067003690,0.3813356,91912.0,91911.0,0.0021086]
[1732067003892,0.4783209,91912.0,91911.0,0.0021086]
[1732067004099,0.3695219,91912.0,91911.0,0.0021086]
[1732067004334,0.2725366,91912.0,91911.0,0.0021086]
[1732067005482,0.36959662,91912.0,91911.0,0.0021086]
[1732067005671,0.2725366,91912.0,91911.0,0.0021086]
[1732067006287,0.3813356,91912.0,91911.0,0.0021086]
[1732067006494,0.73957535,91912.0,91911.0,0.0021086]
[1732067007332,0.93354596,91912.0,91911.0,0.0021086]
[1732067007676,0.73957535,91912.0,91911.0,0.0021086]
[1732067007805,0.73954521,91912.0,91911.0,0.0021086]
[1732067008177,0.3813356,91912.0,91911.0,0.0021086]
[1732067008384,0.73954473,91912.0,91911.0,0.0021086]
[1732067008942,0.93360431,91912.0,91911.0,0.0021086]
[1732067009137,0.3813356,91912.0,91911.0,0.0021086]
[1732067009553,0.73949824,91912.0,91911.0,0.0021086]
[1732067009979,0.3813356,91912.0,91911.0,0.0021086]
[1732067010384,0.73947466,91912.0,91911.0,0.0021086]
[1732067010714,0.7394588,91912.0,91911.0,0.0021086]
[1732067011984,0.7394588,91912.0,91906.0,0.001708]
[1732067011985,0.1263,91907.0,91906.0,0.001708]
[1732067012220,0.48708386,91907.0,91906.0,0.001708]
[1732067012458,0.3922689,91907.0,91906.0,0.001708]
[1732067012690,0.53779336,91907.0,91906.0,0.001708]
[1732067013157,0.3922689,91907.0,91906.0,0.001708]
[1732067013617,0.41247934,91907.0,91906.0,0.001708]
[1732067014073,0.90561244,91907.0,91906.0,0.001708]
[1732067014294,1.09964733,91907.0,91906.0,0.001708]
[1732067014519,0.90561244,91907.0,91906.0,0.001708]
[1732067014752,1.09961601,91907.0,91906.0,0.001708]
[1732067014991,1.09961601,91907.0,91891.0,0.0004]
[1732067014992,0.022,91892.0,91891.0,0.0004]
[1732067015235,0.36708555,91892.0,91891.0,0.0004]
[1732067015465,0.36927184,91892.0,91891.0,0.0004]
[1732067015696,0.26044884,91892.0,91891.0,0.0004]
[1732067016167,0.36927184,91892.0,91891.0,0.0004]
[1732067016419,0.38948228,91892.0,91891.0,0.0004]
[1732067016852,0.36927184,91892.0,91891.0,0.0004]
[1732067017286,0.41246524,91892.0,91891.0,0.0004]
[1732067017496,0.30364224,91892.0,91891.0,0.0004]
[1732067017695,0.28344884,91892.0,91891.0,0.0004]
[1732067017915,0.39227184,91892.0,91891.0,0.0004]
[1732067018136,0.41246524,91892.0,91891.0,0.0004]
[1732067018577,0.30163393,91892.0,91891.0,0.0004]
[1732067018772,0.28144884,91892.0,91891.0,0.0004]
[1732067018993,0.27684884,91892.0,91891.0,0.0004]
[1732067019198,0.27884884,91892.0,91891.0,0.0004]
[1732067023166,0.28319984,91892.0,91891.0,0.0004]
[1732067026467,0.30338592,91892.0,91891.0,0.0004]
[1732067027135,0.30342093,91892.0,91891.0,0.0004]
[1732067029245,0.25752093,91892.0,91891.0,0.0004]
[1732067029472,0.25316993,91892.0,91891.0,0.0004]
[1732067030368,0.41179293,91892.0,91891.0,0.0004]
[1732067030580,0.41179293,91892.0,91891.0,0.0021082]
[1732067032109,0.44644153,91892.0,91891.0,0.0021082]
[1732067033517,0.44644153,91892.0,91877.0,0.0017084]
[1732067033518,0.119,91878.0,91877.0,0.0017084]
[1732067033737,0.22806255,91878.0,91877.0,0.0017084]
[1732067033957,0.23018569,91878.0,91877.0,0.0017084]
[1732067034412,0.25040678,91878.0,91877.0,0.0017084]
[1732067034869,0.25044003,91878.0,91877.0,0.0017084]
[1732067035120,0.30024003,91878.0,91877.0,0.0017084]
[1732067035423,0.40907903,91878.0,91877.0,0.0017084]
[1732067035907,0.27998569,91878.0,91877.0,0.0017084]
[1732067036376,0.086,91872.0,91851.0,0.0004]
[1732067036601,0.20506255,91872.0,91851.0,0.0004]
[1732067036835,0.20752344,91872.0,91854.0,0.03613293]
[1732067037052,0.26019304,91872.0,91854.0,0.03613293]
[1732067037753,0.26019304,91872.0,91851.0,0.0004]
[1732067037754,0.36904004,91872.0,91851.0,0.0004]
[1732067037979,0.26019304,91872.0,91851.0,0.0004]
[1732067038449,0.28319304,91872.0,91851.0,0.0004]
[1732067041641,0.28316286,91872.0,91851.0,0.0004]
[1732067041883,0.23052344,91872.0,91851.0,0.0004]
[1732067042336,0.25076444,91872.0,91851.0,0.0004]
[1732067042571,0.28315005,91872.0,91851.0,0.0004]
[1732067043055,0.25076444,91872.0,91851.0,0.0004]
[1732067043278,0.25076444,91872.0,91871.0,0.0021084]
[1732067043960,0.34772123,91872.0,91871.0,0.0021084]
[1732067044361,0.25076444,91872.0,91871.0,0.0021084]
[1732067045105,0.23052344,91872.0,91871.0,0.0021084]
[1732067045330,0.28314242,91872.0,91871.0,0.0021084]
[1732067045575,0.42857761,91872.0,91871.0,0.0021084]
[1732067046248,0.28314242,91872.0,91871.0,0.0021084]
[1732067046480,0.42616203,91872.0,91871.0,0.0021084]
[1732067046740,0.28068153,91872.0,91871.0,0.0021084]
[1732067047000,1.03595967,91872.0,91871.0,0.0021084]
[1732067047234,0.82727795,91872.0,91871.0,0.0021084]
[1732067048208,1.03603763,91872.0,91871.0,0.0021084]
[1732067048432,1.03603763,91872.0,91851.0,0.0004]
[1732067048433,0.035,91857.0,91851.0,0.0004]
[1732067048657,0.181826,91857.0,91851.0,0.0004]
[1732067048884,0.20205315,91857.0,91851.0,0.0004]
[1732067049808,0.20005315,91857.0,91851.0,0.0004]
[1732067050047,0.20205315,91857.0,91851.0,0.0004]
[1732067050529,0.27965315,91857.0,91851.0,0.0004]
[1732067052267,0.27964046,91857.0,91851.0,0.0004]
[1732067052517,0.33021119,91857.0,91851.0,0.0004]
[1732067052763,0.30998404,91857.0,91851.0,0.0004]
[1732067053181,0.29121707,91857.0,91851.0,0.0004]
[1732067054136,0.4375005,91857.0,91851.0,0.0004]
[1732067054386,0.34051707,91857.0,91851.0,0.0004]
[1732067054605,0.43749189,91857.0,91851.0,0.0004]
[1732067054822,0.34051707,91857.0,91851.0,0.0004]
[1732067055047,0.37284956,91857.0,91851.0,0.0004]
[1732067055262,0.42388925,91857.0,91851.0,0.0004]
[1732067055481,0.32692122,91857.0,91856.0,0.00062337]
[1732067055925,0.32692122,91857.0,91851.0,0.0004]
[1732067055926,0.0404,91852.0,91851.0,0.00036657]
[1732067056138,0.20202122,91852.0,91851.0,0.00036657]
[1732067056350,0.21560538,91852.0,91851.0,0.00036657]
[1732067056800,0.20202122,91852.0,91851.0,0.00036657]
[1732067057030,0.21560538,91852.0,91851.0,0.00036657]
[1732067057253,0.20202122,91852.0,91851.0,0.00036657]
[1732067057482,0.21560538,91852.0,91851.0,0.00036657]
[1732067058448,0.37658906,91852.0,91851.0,0.00036657]
[1732067058652,0.29320614,91852.0,91851.0,0.00036657]
[1732067059329,0.40207614,91852.0,91851.0,0.00036657]
[1732067059749,0.44937614,91852.0,91851.0,0.00036657]
[1732067061619,0.59485128,91852.0,91851.0,0.00036657]
[1732067062097,0.44937614,91852.0,91851.0,0.00036657]
[1732067062340,0.48389152,91852.0,91851.0,0.00036657]
[1732067062575,0.3881221,91852.0,91851.0,0.00036657]
[1732067062788,0.29320614,91852.0,91851.0,0.00036657]
[1732067064174,0.29320614,91852.0,91844.0,0.001708]
[1732067064175,0.0154,91845.0,91844.0,0.001708]
[1732067064402,0.21360614,91845.0,91844.0,0.001708]
[1732067067193,0.20002103,91845.0,91844.0,0.001708]
[1732067068309,0.21360642,91845.0,91844.0,0.001708]
[1732067068983,0.21560642,91845.0,91844.0,0.001708]
[1732067070138,0.33900642,91845.0,91844.0,0.001708]
[1732067071272,0.37138469,91845.0,91844.0,0.001708]
[1732067071717,0.33904101,91845.0,91844.0,0.001708]
[1732067071928,0.33907574,91845.0,91844.0,0.001708]
[1732067072142,0.32549007,91845.0,91844.0,0.001708]
[1732067072372,0.37811741,91845.0,91844.0,0.001708]
[1732067072600,0.39170308,91845.0,91844.0,0.001708]
[1732067072827,0.35931698,91845.0,91844.0,0.001708]
[1732067073047,0.46819598,91845.0,91844.0,0.001708]
[1732067073270,0.44795463,91845.0,91844.0,0.001708]
[1732067073509,0.33907563,91845.0,91844.0,0.001708]
[1732067074200,0.33707563,91845.0,91844.0,0.001708]
[1732067074862,0.29067563,91845.0,91844.0,0.001708]
[1732067075335,0.32506993,91845.0,91844.0,0.001708]
[1732067075557,0.29267563,91845.0,91844.0,0.001708]
[1732067077383,0.40155463,91845.0,91844.0,0.001708]
[1732067077616,0.5470426,91845.0,91844.0,0.001708]
[1732067077843,0.75973,91845.0,91844.0,0.001708]
[1732067078071,0.95371396,91845.0,91844.0,0.001708]
[1732067078300,0.75973,91845.0,91844.0,0.001708]
[1732067078529,0.95371396,91845.0,91844.0,0.001708]
[1732067079217,0.0154,91833.0,91832.0,0.001708]
[1732067079444,0.21567563,91833.0,91832.0,0.001708]
[1732067080105,0.01,91826.0,91811.0,0.005]
[1732067080335,0.13206255,91820.0,91811.0,0.005]
[1732067080554,0.21567563,91820.0,91811.0,0.0004]
[1732067080775,0.53838395,91820.0,91811.0,0.0004]
[1732067081002,0.76281466,91820.0,91811.0,0.0004]
[1732067081281,0.94159539,91820.0,91811.0,0.0004]
[1732067081503,0.94159539,91820.0,91751.0,0.0004]
[1732067081504,0.001,91780.0,91751.0,0.0004]
[1732067081726,0.10906255,91765.0,91751.0,0.0004]
[1732067081958,0.10906255,91759.0,91751.0,0.0004]
[1732067082181,0.13206255,91753.0,91752.0,0.03689935]
[1732067082402,0.13206255,91753.0,91752.0,0.0017088]
[1732067082867,0.15221614,91753.0,91752.0,0.0017088]
[1732067083088,0.13206255,91753.0,91752.0,0.0017088]
[1732067090084,0.10906255,91753.0,91752.0,0.0017088]
[1732067091659,0.10906255,91753.0,91752.0,0.0063088]
[1732067096819,0.023,91783.0,91752.0,0.0063088]
[1732067097093,0.10906255,91775.0,91753.0,0.0473]
[1732067097800,0.10906255,91775.0,91764.0,0.0046]
[1732067099398,0.10906255,91769.0,91764.0,0.0046]
[1732067099621,0.10906255,91769.0,91752.0,0.0017088]
[1732067099622,0.023,91764.0,91759.0,0.0046]
[1732067099842,0.10906255,91761.0,91757.0,0.0046]
[1732067100094,0.01,91776.0,91752.0,0.0017088]
[1732067100095,0.10906255,91760.0,91753.0,0.0046]
[1732067100279,0.10906255,91760.0,91756.0,0.0046]
[1732067100720,0.10906255,91758.0,91753.0,0.0046]
[1732067104521,0.10906255,91758.0,91752.0,0.0017088]
[1732067104522,0.10906255,91758.0,91756.0,0.0046]
[1732067104740,0.10906255,91758.0,91753.0,0.0046]
[1732067105181,0.10906255,91758.0,91752.0,0.0017088]
[1732067105182,0.10906255,91758.0,91756.0,0.0046]
[1732067105636,0.10906255,91758.0,91755.0,0.0046]
[1732067106074,0.10906255,91758.0,91756.0,0.0046]
[1732067106500,0.023,91757.0,91756.0,0.0046]
[1732067106710,0.13206255,91757.0,91753.0,0.0046]
[1732067106918,0.10906255,91756.0,91753.0,0.0046]
[1732067107138,0.023,91755.0,91753.0,0.0046]
[1732067107369,0.023,91755.0,91752.0,0.0017088]
[1732067107370,0.023,91755.0,91754.0,0.0046]
[1732067107574,0.023,91759.0,91756.0,0.0046]
[1732067107829,0.023,91759.0,91753.0,0.0046]
[1732067108536,0.023,91757.0,91753.0,0.0046]
[1732067108743,0.10906255,91756.0,91753.0,0.0046]
[1732067108968,0.10906255,91756.0,91755.0,0.0046]
[1732067109176,0.07814155,91756.0,91755.0,0.2125]
[1732067109425,0.001711,91760.0,91759.0,0.0046]
[1732067109635,0.0054,91794.0,91759.0,0.0046]
[1732067109636,0.01,91796.0,91759.0,0.00677919]
[1732067109850,0.01,91796.0,91777.0,0.0046]
[1732067109851,0.10906255,91782.0,91777.0,0.0046]
[1732067110087,0.02025069,91781.0,91777.0,0.0046]
[1732067110315,0.10906255,91780.0,91777.0,0.0046]
[1732067112987,0.10906255,91780.0,91765.0,0.00217907]
[1732067112988,0.10906255,91780.0,91779.0,0.0046]
[1732067113435,0.0054,91814.0,91779.0,0.0046]
[1732067113436,0.0202452,91803.0,91801.0,0.0046]
[1732067113649,0.10906255,91802.0,91801.0,0.0046]
[1732067116124,0.10906255,91802.0,91801.0,0.00328661]
[1732067116335,0.10906255,91802.0,91801.0,0.03838723]
[1732067116553,0.10906255,91802.0,91801.0,0.00328661]
[1732067117017,0.10906255,91802.0,91800.0,0.05791341]
[1732067118115,0.10906255,91802.0,91800.0,0.09255111]
[1732067118363,0.10906255,91802.0,91800.0,0.0346377]
[1732067118796,0.10906255,91802.0,91797.0,0.1]
[1732067119245,0.10906255,91802.0,91797.0,0.03605236]
[1732067119766,0.10906255,91802.0,91798.0,0.1]
[1732067120236,0.10906255,91802.0,91793.0,0.04516218]
[1732067120690,0.10906255,91802.0,91794.0,0.00217855]
[1732067121165,0.10906255,91802.0,91798.0,0.1]
[1732067122009,0.023,91830.0,91802.0,0.01]
[1732067122235,0.10906255,91825.0,91803.0,0.00217819]
[1732067122487,0.023,91824.0,91803.0,0.00217819]
[1732067122704,0.023,91822.0,91805.0,0.01]
[1732067122948,0.023,91820.0,91806.0,0.00217819]
[1732067123180,0.10906255,91819.0,91806.0,0.00217819]
[1732067123816,0.10906255,91819.0,91806.0,0.01217819]
[1732067124028,0.10906255,91819.0,91810.0,0.1]
[1732067124239,0.10906255,91819.0,91811.0,0.00217811]
[1732067124692,0.01,91837.0,91823.0,0.1579]
[1732067124915,0.0017092,91851.0,91823.0,0.1579]
[1732067124916,0.0017092,91851.0,91830.0,0.01]
[1732067125147,0.0017092,91851.0,91823.0,0.0579]
[1732067125148,0.10906255,91848.0,91836.0,0.1]
[1732067125379,0.10906255,91848.0,91837.0,0.00217747]
[1732067126890,0.0017092,91851.0,91843.0,0.01]
[1732067127116,0.11077315,91849.0,91843.0,0.01]
[1732067128486,0.11077315,91849.0,91844.0,0.00217734]
[1732067129348,0.10906255,91848.0,91843.0,0.03605062]
[1732067129566,0.023,91847.0,91843.0,0.03605062]
[1732067129786,0.023,91845.0,91837.0,0.01]
[1732067130010,0.023,91848.0,91836.0,0.01]
[1732067130011,0.10906255,91844.0,91836.0,0.01]
[1732067130681,0.10906255,91844.0,91837.0,0.01]
[1732067130954,0.023,91843.0,91828.0,0.03519967]
[1732067131220,0.023,91841.0,91831.0,0.01]
[1732067131441,0.10906255,91840.0,91836.0,0.1]
[1732067131674,0.023,91839.0,91836.0,0.1]
[1732067131900,0.023,91837.0,91836.0,0.1]
[1732067132104,0.13206255,91837.0,91836.0,0.1]
[1732067132757,0.13206255,91837.0,91831.0,0.01]
[1732067132970,0.10906255,91836.0,91831.0,0.01]
[1732067134267,0.10906255,91836.0,91832.0,0.00217777]
[1732067134525,0.10906255,91836.0,91831.0,0.01]
[1732067135055,0.10906255,91836.0,91831.0,0.04477949]
[1732067135276,0.10906255,91836.0,91831.0,0.01]
[1732067136314,0.10906255,91836.0,91826.0,0.00217771]
[1732067136539,0.10906255,91836.0,91825.0,0.03464953]
[1732067136976,0.10906255,91836.0,91818.0,0.02]
[1732067137410,0.10906255,91836.0,91822.0,0.01]
[1732067138568,0.10906255,91836.0,91827.0,0.1]
[1732067139220,0.10906255,91836.0,91822.0,0.01]
[1732067139221,0.11077275,91836.0,91822.0,0.01]
[1732067139445,0.11077275,91836.0,91827.0,0.1]
[1732067140498,0.11077275,91836.0,91822.0,0.01]
[1732067140935,0.11077275,91836.0,91827.0,0.1]
[1732067142056,0.11077275,91836.0,91822.0,0.01]
[1732067142298,0.11077275,91836.0,91822.0,0.04491889]
[1732067142787,0.11077275,91836.0,91827.0,0.1]
[1732067143404,0.11077275,91836.0,91822.0,0.01]
[1732067145828,0.11077275,91836.0,91818.0,0.03618668]
[1732067146263,0.0807,91835.0,91814.0,0.01]
[1732067146479,0.10906255,91834.0,91819.0,0.1]
[1732067147324,0.10906255,91834.0,91814.0,0.01]
[1732067147756,0.10906255,91834.0,91810.0,0.01]
[1732067147757,0.10906255,91834.0,91813.0,0.01]
[1732067147975,0.10906255,91834.0,91814.0,0.01]
[1732067148424,0.10906255,91834.0,91815.0,0.01]
[1732067148628,0.10906255,91834.0,91814.0,0.01]
[1732067149075,0.10906255,91834.0,91819.0,0.1]
[1732067150192,0.10906255,91834.0,91818.0,0.01]
[1732067150688,0.10906255,91834.0,91819.0,0.00217781]
[1732067150910,0.10906255,91834.0,91818.0,0.02]
[1732067150911,0.10906255,91834.0,91818.0,0.00685869]
[1732067151779,0.023,91833.0,91815.0,0.1]
[1732067151986,0.11220386,91834.0,91814.0,0.0356929]
[1732067151987,0.023,91831.0,91814.0,0.0356929]
[1732067152198,0.023,91829.0,91814.0,0.0356929]
[1732067152448,0.10906255,91828.0,91818.0,0.1]
[1732067152660,0.023,91827.0,91818.0,0.1]
[1732067152928,0.10906255,91826.0,91818.0,0.1]
[1732067153313,0.10906255,91826.0,91814.0,0.00685869]
[1732067154433,0.10906255,91826.0,91819.0,0.1]
[1732067155289,0.10906255,91826.0,91814.0,0.00685869]
[1732067155754,0.11106255,91826.0,91798.0,0.1]
[1732067156837,0.10906255,91826.0,91799.0,0.00217801]
[1732067157099,0.10906255,91826.0,91789.0,0.1]
[1732067157348,0.10906255,91826.0,91791.0,0.1]
[1732067157559,0.10906255,91826.0,91793.0,0.1]
[1732067157786,0.10906255,91826.0,91795.0,0.1]
[1732067157990,0.0807,91832.0,91797.0,0.1]
[1732067158232,0.10906255,91831.0,91799.0,0.1]
[1732067158437,0.10906255,91831.0,91801.0,0.1]
[1732067158640,0.10906255,91831.0,91803.0,0.1]